fUSD/lending_fUSD_20260115
["ID","MTS","AMOUNT","RATE_DAILY","PERIOD"]
[402095807,1768517447302,-650.48,0.00035616,10]
[402095808,1768517447313,-500.0,0.00035616,10]
[402095809,1768517447322,-500.0,0.00035616,10]
[402095810,1768517447334,-500.0,0.00035616,5]
[402095811,1768517447344,-500.0,0.00035616,10]
[402095812,1768517447354,-500.0,0.00035616,10]
[402095813,1768517447363,-185.74634011,0.00035616,10]
[402095814,1768517447373,-500.0,0.00035616,10]
[402095815,1768517447382,-500.0,0.00035616,10]
[402095816,1768517447392,-500.0,0.00035616,10]
[402095817,1768517447402,-500.0,0.00035616,10]
[402095818,1768517447411,-500.0,0.00035616,10]
[402095819,1768517447421,-1171.76,0.00035616,10]
[402095820,1768517447430,-928.17,0.00035616,10]
[402095821,1768517447440,-500.0,0.00035616,10]
[402095822,1768517447450,-500.0,0.00035616,10]
[402095823,1768517447460,-500.0,0.00035616,10]
[402095824,1768517447470,-973.55,0.00035616,10]
[402095825,1768517447479,-1557.23,0.00035616,10]
[402095826,1768517447489,-500.0,0.00035616,10]
[402095827,1768517447500,-500.0,0.00035616,10]
[402095828,1768517447511,-500.0,0.00035616,10]
[402095830,1768517447521,-901.89,0.00035616,10]
[402095832,1768517447530,-460.0,0.00035616,10]
[402095834,1768517447539,-570.21,0.00035616,10]
[402095836,1768517447549,-500.0,0.00035616,10]
[402095838,1768517447558,-500.0,0.00035616,10]
[402095840,1768517447568,-549.08,0.00035616,10]
[402095842,1768517447577,-500.0,0.00035616,10]
[402095844,1768517447587,-502.83,0.00035616,10]
[402095847,1768517447598,-664.95,0.00035616,10]
[402095849,1768517447607,-500.0,0.00035616,10]
[402095851,1768517447617,-500.0,0.00035616,10]
[402095853,1768517447630,-620.84,0.00035616,10]
[402095855,1768517447640,-500.0,0.00035616,10]
[402095857,1768517447649,-930.0,0.00035616,10]
[402095859,1768517447659,-500.0,0.00035616,10]
[402095861,1768517447670,-500.0,0.00035616,10]
[402095863,1768517447680,-500.0,0.00035616,10]
[402095865,1768517447690,-500.0,0.00035616,10]
[402095867,1768517447703,-611.59,0.00035616,10]
[402095869,1768517447715,-500.0,0.00035616,10]
[402095871,1768517447727,-843.01,0.00035616,10]
[402095873,1768517447736,-500.0,0.00035616,10]
[402095875,1768517447746,-581.65,0.00035616,10]
[402095878,1768517447756,-500.0,0.00035616,10]
[402095880,1768517447767,-500.0,0.00035616,10]
[402095882,1768517447777,-500.0,0.00035616,10]
[402095884,1768517447794,-500.0,0.00035616,10]
[402095886,1768517447807,-945.88,0.00035616,10]
[402095888,1768517447818,-500.0,0.00035616,10]
[402095890,1768517447828,-860.28,0.00035616,10]
[402095892,1768517447839,-500.0,0.00035616,10]
[402095894,1768517447849,-500.0,0.00035616,10]
[402095896,1768517447859,-825.03,0.00035616,10]
[402095899,1768517447868,-500.0,0.00035616,10]
[402095901,1768517447878,-353.89105301,0.00035616,10]
[402095903,1768517447887,-641.64,0.00035616,10]
[402095905,1768517447897,-500.0,0.00035616,10]
[402095906,1768517447907,-500.0,0.00035616,10]
[402095909,1768517447918,-989.17,0.00035616,10]
[402095911,1768517447927,-1173.17,0.00035616,10]
[402095912,1768517447937,-500.0,0.00035616,10]
[402095914,1768517447947,-500.0,0.00035616,10]
[402095916,1768517447956,-663.95,0.00035616,10]
[402095919,1768517447966,-523.73,0.00035616,10]
[402095920,1768517447975,-500.0,0.00035616,10]
[402095923,1768517447985,-1510.57,0.00035616,10]
[402095925,1768517447995,-847.72,0.00035616,10]
[402095927,1768517448005,-941.74,0.00035616,10]
[402095929,1768517448015,-500.0,0.00035616,10]
[402095931,1768517448024,-500.0,0.00035616,10]
[402095933,1768517448034,-890.13,0.00035616,10]
[402095934,1768517448044,-500.0,0.00035616,10]
[402095936,1768517448053,-1675.63,0.00035616,10]
[402095938,1768517448063,-500.0,0.00035616,10]
[402095939,1768517448072,-1269.7,0.00035616,10]
[402095940,1768517448082,-1012.73,0.00035616,10]
[402095941,1768517448093,-868.69,0.00035616,10]
[402095942,1768517448103,-500.0,0.00035616,10]
[402095943,1768517448112,-500.0,0.00035616,10]
[402095944,1768517448122,-624.53,0.00035616,10]
[402095945,1768517448131,-500.0,0.00035616,10]
[402095946,1768517448140,-500.0,0.00035616,10]
[402095947,1768517448150,-500.0,0.00035616,10]
[402095948,1768517448160,-500.0,0.00035616,10]
[402095949,1768517448170,-500.0,0.00035616,10]
[402095950,1768517448181,-614.76,0.00035616,10]
[402095951,1768517448190,-691.89,0.00035616,10]
[402095952,1768517448200,-500.0,0.00035616,10]
[402095953,1768517448209,-500.0,0.00035616,10]
[402095954,1768517448219,-500.0,0.00035616,10]
[402095955,1768517448229,-500.0,0.00035616,10]
[402095956,1768517448239,-1213.38,0.00035616,10]
[402095957,1768517448248,-500.0,0.00035616,10]
[402095958,1768517448258,-876.76,0.00035616,10]
[402095959,1768517448268,-739.32,0.00035616,10]
[402095960,1768517448278,-500.0,0.00035616,10]
[402095961,1768517448288,-1256.58,0.00035616,10]
[402095962,1768517448298,-500.0,0.00035616,10]
[402095963,1768517448307,-500.0,0.00035616,10]
[402095964,1768517448317,-1355.47,0.00035616,10]
[402095965,1768517448327,-500.0,0.00035616,10]
[402095966,1768517448337,-500.0,0.00035616,10]
[402095967,1768517448348,-500.0,0.00035616,10]
[402095968,1768517448358,-500.0,0.00035616,10]
[402095969,1768517448367,-500.0,0.00035616,10]
[402095970,1768517448377,-500.0,0.00035616,10]
[402095971,1768517448387,-500.0,0.00035616,10]
[402095972,1768517448396,-500.0,0.00035616,10]
[402095973,1768517448407,-743.23,0.00035616,10]
[402095974,1768517448418,-587.36,0.00035616,10]
[402095975,1768517448428,-500.0,0.00035616,10]
[402095976,1768517448438,-780.25,0.00035616,10]
[402095977,1768517448447,-500.0,0.00035616,10]
[402095978,1768517448457,-742.07,0.00035616,10]
[402095979,1768517448467,-1279.91,0.00035616,10]
[402095980,1768517448478,-721.01,0.00035616,10]
[402095981,1768517448488,-500.0,0.00035616,10]
[402095982,1768517448497,-543.55,0.00035616,10]
[402095983,1768517448506,-500.0,0.00035616,10]
[402095984,1768517448516,-500.0,0.00035616,10]
[402095985,1768517448526,-434.26372376,0.00035616,10]
[402095986,1768517448535,-885.16,0.00035616,10]
[402095987,1768517448552,-500.0,0.00035616,10]
[402095988,1768517448562,-561.26895617,0.00035616,10]
[402095989,1768517448572,-500.0,0.00035616,10]
[402095990,1768517448581,-832.45,0.00035616,10]
[402095991,1768517448591,-500.0,0.00035616,10]
[402095992,1768517448602,-500.0,0.00035616,10]
[402095993,1768517448615,-500.0,0.00035616,10]
[402095994,1768517448636,-511.68,0.00035616,10]
[402095995,1768517448656,-500.0,0.00035616,10]
[402095996,1768517448666,-1790.65,0.00035616,10]
[402095997,1768517448677,-510.84,0.00035616,10]
[402095998,1768517448686,-500.0,0.00035616,10]
[402095999,1768517448696,-952.62,0.00035616,10]
[402096000,1768517448705,-782.58,0.00035616,10]
[402096001,1768517448715,-500.0,0.00035616,10]
[402096002,1768517448726,-618.51,0.00035616,10]
[402096003,1768517448735,-500.0,0.00035616,10]
[402096004,1768517448745,-595.27,0.00035616,10]
[402096005,1768517448754,-500.0,0.00035616,10]
[402096006,1768517448764,-507.54396168,0.00035616,10]
[402096007,1768517448774,-500.0,0.00035616,10]
[402096008,1768517448784,-500.0,0.00035616,10]
[402096009,1768517448793,-500.0,0.00035616,10]
[402096010,1768517448803,-836.96,0.00035616,10]
[402096011,1768517448813,-725.4,0.00035616,10]
[402096012,1768517448823,-500.0,0.00035616,10]
[402096013,1768517448832,-500.0,0.00035616,10]
[402096014,1768517448843,-585.09,0.00035616,10]
[402096015,1768517448852,-500.0,0.00035616,10]
[402096016,1768517448862,-643.94,0.00035616,10]
[402096017,1768517448872,-500.0,0.00035616,10]
[402096018,1768517448882,-2042.44,0.00035616,10]
[402096019,1768517448892,-1245.12,0.00035616,10]
[402096020,1768517448901,-500.0,0.00035616,10]
[402096021,1768517448911,-553.13,0.00035616,10]
[402096022,1768517448921,-500.0,0.00035616,10]
[402096023,1768517448930,-905.86,0.00035616,10]
[402096024,1768517448940,-603.64,0.00035616,10]
[402096025,1768517448950,-702.69,0.00035616,10]
[402096026,1768517448960,-513.28614097,0.00035616,10]
[402096027,1768517448970,-637.02,0.00035616,10]
[402096028,1768517448980,-1347.67,0.00035616,10]
[402096029,1768517448990,-889.74,0.00035616,10]
[402096030,1768517448999,-903.98,0.00035616,10]
[402096031,1768517449010,-505.71,0.00035616,10]
[402096032,1768517449019,-500.0,0.00035616,10]
[402096033,1768517449029,-500.0,0.00035616,10]
[402096034,1768517449038,-526.68,0.00035616,10]
[402096035,1768517449048,-158.393184,0.00035616,10]
[402096036,1768517449058,-500.0,0.00035616,10]
[402096037,1768517449068,-500.0,0.00035616,10]
[402096038,1768517449078,-2493.57,0.00035616,10]
[402096039,1768517449089,-155.306841,0.00035616,10]
[402096040,1768517449099,-558.26,0.00035616,10]
[402096041,1768517449108,-178.587181,0.00035616,10]
[402096042,1768517449119,-500.0,0.00035616,10]
[402096043,1768517449128,-500.0,0.00035616,10]
[402096044,1768517449138,-500.0,0.00035616,10]
[402096045,1768517449148,-500.0,0.00035616,10]
[402096046,1768517449157,-400.0,0.00035616,10]
[402096047,1768517449167,-1033.62,0.00035616,10]
[402096048,1768517449177,-750.4,0.00035616,10]
[402096049,1768517449186,-500.0,0.00035616,10]
[402096050,1768517449196,-1169.6,0.00035616,10]
[402096051,1768517449206,-500.0,0.00035616,10]
[402096052,1768517449216,-500.0,0.00035616,10]
[402096053,1768517449226,-1186.78,0.00035616,10]
[402096054,1768517449236,-500.0,0.00035616,10]
[402096055,1768517449245,-500.0,0.00035616,10]
[402096056,1768517449255,-500.0,0.00035616,10]
[402096057,1768517449265,-709.55,0.00035616,10]
[402096058,1768517449274,-500.0,0.00035616,10]
[402096059,1768517449284,-520.60855182,0.00035616,10]
[402096060,1768517449294,-500.0,0.00035616,10]
[402096061,1768517449303,-500.0,0.00035616,10]
[402096062,1768517449313,-500.0,0.00035616,10]
[402096063,1768517449323,-500.0,0.00035616,10]
[402096064,1768517449333,-883.4,0.00035616,10]
[402096065,1768517449343,-500.0,0.00035616,10]
[402096066,1768517449580,-500.0,0.00035616,10]
[402096067,1768517449590,-765.71,0.00035616,10]
[402096068,1768517449600,-1098.9,0.00035616,10]
[402096069,1768517449609,-500.0,0.00035616,10]
[402096070,1768517449619,-500.0,0.00035616,10]
[402096071,1768517449632,-500.0,0.00035616,10]
[402096072,1768517449641,-500.0,0.00035616,10]
[402096073,1768517449651,-575.53,0.00035616,10]
[402096074,1768517449661,-500.0,0.00035616,10]
[402096075,1768517449671,-500.0,0.00035616,10]
[402096076,1768517449680,-641.15,0.00035616,10]
[402096077,1768517449691,-590.13,0.00035616,10]
[402096078,1768517449700,-1381.27,0.00035616,10]
[402096079,1768517449710,-659.29,0.00035616,10]
[402096080,1768517449719,-694.62,0.00035616,10]
[402096081,1768517449728,-500.0,0.00035616,10]
[402096082,1768517449738,-577.36,0.00035616,10]
[402096083,1768517449747,-500.0,0.00035616,10]
[402096084,1768517449757,-511.06,0.00035616,10]
[402096085,1768517449766,-500.0,0.00035616,10]
[402096086,1768517449775,-500.0,0.00035616,10]
[402096087,1768517449785,-500.0,0.00035616,10]
[402096088,1768517449794,-1037.22,0.00035616,10]
[402096089,1768517449804,-2075.74,0.00035616,10]
[402096090,1768517449813,-763.26,0.00035616,10]
[402096091,1768517449823,-500.0,0.00035616,10]
[402096092,1768517449833,-527.88,0.00035616,10]
[402096093,1768517449843,-500.0,0.00035616,10]
[402096094,1768517449853,-500.0,0.00035616,10]
[402096095,1768517449863,-577.53986698,0.00035616,10]
[402096096,1768517449873,-863.9,0.00035616,10]
[402096097,1768517449882,-501.75,0.00035616,10]
[402096098,1768517449892,-531.88,0.00035616,10]
[402096099,1768517449902,-765.5,0.00035616,10]
[402096100,1768517449911,-817.65,0.00035616,10]
[402096101,1768517449921,-500.0,0.00035616,10]
[402096102,1768517449930,-1395.45,0.00035616,10]
[402096103,1768517449940,-500.0,0.00035616,10]
[402096104,1768517449950,-500.0,0.00035616,10]
[402096105,1768517449959,-1065.29,0.00035616,10]
[402096106,1768517449968,-754.63,0.00035616,10]
[402096107,1768517449977,-500.0,0.00035616,10]
[402096108,1768517449987,-1096.36,0.00035616,10]
[402096109,1768517449996,-500.0,0.00035616,10]
[402096110,1768517450005,-1255.0,0.00035616,10]
[402096111,1768517450015,-413.00236916,0.00035616,10]
[402096112,1768517450024,-500.0,0.00035616,10]
[402096113,1768517450033,-500.0,0.00035616,10]
[402096114,1768517450043,-500.0,0.00035616,10]
[402096115,1768517450052,-500.0,0.00035616,10]
[402096116,1768517450062,-500.0,0.00035616,10]
[402096117,1768517450071,-500.0,0.00035616,10]
[402096118,1768517450080,-500.0,0.00035616,10]
[402096119,1768517450090,-500.0,0.00035616,10]
[402096120,1768517450100,-1252.34,0.00035616,10]
[402096121,1768517450110,-500.0,0.00035616,10]
[402096122,1768517450119,-500.0,0.00035616,10]
[402096123,1768517450129,-1000.0,0.00035616,2]
[402096124,1768517450138,-500.0,0.00035616,10]
[402096125,1768517450148,-719.64,0.00035616,10]
[402096126,1768517450157,-500.0,0.00035616,10]
[402096127,1768517450166,-500.0,0.00035616,10]
[402096128,1768517450176,-500.0,0.00035616,10]
[402096129,1768517450185,-1008.4,0.00035616,10]
[402096130,1768517450195,-500.0,0.00035616,10]
[402096131,1768517450204,-668.57,0.00035616,10]
[402096132,1768517450214,-500.0,0.00035616,10]
[402096133,1768517450224,-500.0,0.00035616,10]
[402096134,1768517450233,-500.0,0.00035616,10]
[402096135,1768517450242,-539.06,0.00035616,10]
[402096136,1768517450252,-500.0,0.00035616,10]
[402096137,1768517450261,-841.27,0.00035616,10]
[402096138,1768517450271,-500.0,0.00035616,10]
[402096139,1768517450280,-500.0,0.00035616,10]
[402096140,1768517450289,-500.0,0.00035616,10]
[402096141,1768517450298,-500.0,0.00035616,10]
[402096142,1768517450308,-531.87,0.00035616,10]
[402096143,1768517450317,-546.19,0.00035616,10]
[402096144,1768517450326,-500.0,0.00035616,10]
[402096145,1768517450336,-1433.33,0.00035616,10]
[402096146,1768517450346,-500.0,0.00035616,10]
[402096147,1768517450355,-775.81,0.00035616,10]
[402096148,1768517450364,-500.0,0.00035616,10]
[402096149,1768517450373,-1034.77,0.00035616,10]
[402096150,1768517450383,-1053.62,0.00035616,10]
[402096151,1768517450392,-500.0,0.00035616,10]
[402096152,1768517450401,-994.35,0.00035616,10]
[402096153,1768517450410,-500.0,0.00035616,10]
[402096154,1768517450419,-500.0,0.00035616,10]
[402096155,1768517450428,-1173.63,0.00035616,10]
[402096156,1768517450437,-755.13,0.00035616,10]
[402096157,1768517450447,-1055.94,0.00035616,10]
[402096158,1768517450456,-500.0,0.00035616,10]
[402096159,1768517450465,-500.0,0.00035616,10]
[402096160,1768517450475,-500.0,0.00035616,10]
[402096161,1768517450484,-500.33,0.00035616,10]
[402096162,1768517450494,-1218.31,0.00035616,10]
[402096163,1768517450503,-698.37,0.00035616,10]
[402096164,1768517450512,-1563.06,0.00035616,10]
[402096165,1768517450521,-617.13,0.00035616,10]
[402096166,1768517450531,-500.0,0.00035616,10]
[402096167,1768517450540,-1093.04,0.00035616,10]
[402096168,1768517450550,-500.0,0.00035616,10]
[402096169,1768517450559,-660.47,0.00035616,10]
[402096170,1768517450568,-500.0,0.00035616,10]
[402096171,1768517450577,-500.0,0.00035616,10]
[402096172,1768517450588,-500.0,0.00035616,10]
[402096173,1768517450597,-588.19,0.00035616,10]
[402096174,1768517450606,-500.0,0.00035616,10]
[402096175,1768517450616,-500.0,0.00035616,10]
[402096176,1768517450625,-500.0,0.00035616,10]
[402096177,1768517450636,-500.0,0.00035616,10]
[402096178,1768517450645,-940.61,0.00035616,10]
[402096179,1768517450655,-876.98,0.00035616,10]
[402096180,1768517450666,-500.0,0.00035616,10]
[402096181,1768517450677,-500.0,0.00035616,10]
[402096182,1768517450688,-500.0,0.00035616,10]
[402096183,1768517450699,-1809.41,0.00035616,10]
[402096184,1768517450709,-19.38730308,0.00035616,10]
[402096185,1768517452246,-1000.0,0.00016154,2]
[402096186,1768517452255,-74.08152458,0.00017176,2]
[402096187,1768517452266,-425.91847542,0.00017176,2]
[402096188,1768517452276,-6.68634454,0.00017271,2]
[402096189,1768517452287,-144.31365546,0.00017271,2]
[402096190,1768517452296,-151.0,0.00017271,2]
[402096191,1768517452305,-151.0,0.00017271,2]
[402096192,1768517452314,-202.77842616,0.00035616,10]
[402096193,1768517452325,-2987.76427076,0.00035616,10]
[402096194,1768517452335,-532.65,0.00035616,10]
[402096195,1768517452344,-500.0,0.00035616,10]
[402096196,1768517452353,-500.0,0.00035616,10]
[402096197,1768517452362,-923.74,0.00035616,10]
[402096198,1768517452371,-500.0,0.00035616,10]
[402096199,1768517452380,-1483.36,0.00035616,10]
[402096200,1768517452389,-555.49384842,0.00035616,10]
[402096201,1768517452398,-533.6,0.00035616,10]
[402096202,1768517452407,-500.0,0.00035616,10]
[402096203,1768517452416,-500.0,0.00035616,10]
[402096204,1768517452425,-540.36,0.00035616,10]
[402096205,1768517452434,-500.0,0.00035616,10]
[402096206,1768517452443,-530.97688845,0.00035616,10]
[402096207,1768517452452,-1647.5,0.00035616,10]
[402096208,1768517452462,-500.0,0.00035616,10]
[402096209,1768517452471,-500.0,0.00035616,10]
[402096210,1768517452480,-500.0,0.00035616,10]
[402096211,1768517452489,-1568.08,0.00035616,10]
[402096212,1768517452498,-500.0,0.00035616,10]
[402096213,1768517452507,-1411.22,0.00035616,10]
[402096214,1768517452516,-500.0,0.00035616,10]
[402096215,1768517452525,-654.56,0.00035616,10]
[402096216,1768517452534,-1631.24,0.00035616,10]
[402096217,1768517452543,-500.0,0.00035616,10]
[402096218,1768517452552,-645.30409563,0.00035616,10]
[402096219,1768517452561,-500.0,0.00035616,10]
[402096220,1768517452570,-500.0,0.00035616,10]
[402096221,1768517452579,-500.0,0.00035616,10]
[402096222,1768517452588,-369.47119028,0.00035616,10]
[402096223,1768517452597,-548.19,0.00035616,10]
[402096224,1768517452606,-500.0,0.00035616,10]
[402096225,1768517452616,-575.11,0.00035616,10]
[402096226,1768517452625,-500.0,0.00035616,10]
[402096227,1768517452638,-500.0,0.00035616,10]
[402096228,1768517452647,-839.05,0.00035616,10]
[402096229,1768517452656,-1216.16,0.00035616,10]
[402096230,1768517452665,-500.0,0.00035616,10]
[402096231,1768517452675,-1317.51,0.00035616,10]
[402096232,1768517452684,-601.75,0.00035616,10]
[402096233,1768517452693,-545.12,0.00035616,10]
[402096234,1768517452703,-637.52,0.00035616,10]
[402096235,1768517452713,-732.37,0.00035616,10]
[402096236,1768517452722,-1152.5,0.00035616,10]
[402096237,1768517452731,-500.0,0.00035616,10]
[402096238,1768517452742,-833.2,0.00035616,10]
[402096239,1768517452751,-500.0,0.00035616,10]
[402096240,1768517452762,-1255.42,0.00035616,10]
[402096241,1768517452773,-500.0,0.00035616,10]
[402096242,1768517452783,-1358.77,0.00035616,10]
[402096243,1768517452792,-1054.76,0.00035616,10]
[402096244,1768517452803,-581.64558793,0.00035616,30]
[402096245,1768517452813,-500.0,0.00035616,10]
[402096246,1768517452822,-509.6147593,0.00035616,10]
[402096247,1768517452832,-500.0,0.00035616,10]
[402096248,1768517452842,-500.0,0.00035616,10]
[402096249,1768517452851,-500.0,0.00035616,10]
[402096250,1768517452862,-705.14,0.00035616,10]
[402096251,1768517452871,-853.55,0.00035616,10]
[402096252,1768517452880,-500.0,0.00035616,10]
[402096253,1768517452890,-511.15,0.00035616,10]
[402096254,1768517452899,-622.43,0.00035616,10]
[402096255,1768517452909,-576.31,0.00035616,10]
[402096256,1768517452919,-500.0,0.00035616,10]
[402096257,1768517452928,-674.39,0.00035616,10]
[402096258,1768517452938,-543.3813419,0.00035616,10]
[402096259,1768517452947,-1115.1,0.00035616,10]
[402096260,1768517452957,-500.0,0.00035616,10]
[402096261,1768517452967,-803.14,0.00035616,10]
[402096262,1768517452976,-1448.78,0.00035616,10]
[402096263,1768517452986,-1037.6,0.00035616,10]
[402096264,1768517452996,-500.0,0.00035616,10]
[402096265,1768517453006,-500.0,0.00035616,10]
[402096266,1768517453016,-761.3,0.00035616,10]
[402096267,1768517453026,-500.0,0.00035616,10]
[402096268,1768517453036,-500.0,0.00035616,10]
[402096269,1768517453046,-631.9,0.00035616,10]
[402096270,1768517453055,-500.0,0.00035616,10]
[402096271,1768517453065,-825.31,0.00035616,10]
[402096272,1768517453075,-500.0,0.00035616,10]
[402096273,1768517453084,-878.13,0.00035616,10]
[402096274,1768517453094,-649.71,0.00035616,10]
[402096275,1768517453103,-500.0,0.00035616,10]
[402096276,1768517453113,-500.0,0.00035616,10]
[402096277,1768517453123,-1000.0,0.00035616,10]
[402096278,1768517453134,-500.0,0.00035616,10]
[402096279,1768517453144,-500.0,0.00035616,10]
[402096280,1768517453153,-1132.78,0.00035616,10]
[402096281,1768517453164,-500.0,0.00035616,10]
[402096282,1768517453174,-189.66358678,0.00035616,10]
[402096283,1768517453184,-558.88,0.00035616,10]
[402096284,1768517453194,-500.0,0.00035616,10]
[402096285,1768517453204,-557.19,0.00035616,10]
[402096286,1768517453214,-572.6,0.00035616,10]
[402096287,1768517453225,-2277.7,0.00035616,10]
[402096288,1768517453235,-1218.37,0.00035616,10]
[402096289,1768517453245,-500.0,0.00035616,10]
[402096290,1768517453254,-500.0,0.00035616,10]
[402096291,1768517453264,-500.0,0.00035616,10]
[402096292,1768517453274,-599.85948396,0.00035616,10]
[402096293,1768517453284,-987.66,0.00035616,10]
[402096294,1768517453293,-789.91,0.00035616,10]
[402096295,1768517453303,-500.0,0.00035616,10]
[402096296,1768517453313,-500.0,0.00035616,10]
[402096297,1768517453323,-500.0,0.00035616,10]
[402096298,1768517453333,-500.0,0.00035616,10]
[402096299,1768517453343,-788.1,0.00035616,10]
[402096300,1768517453362,-500.0,0.00035616,10]
[402096301,1768517453384,-707.82,0.00035616,10]
[402096302,1768517453396,-500.0,0.00035616,10]
[402096303,1768517453406,-500.0,0.00035616,10]
[402096304,1768517453416,-500.0,0.00035616,10]
[402096305,1768517453425,-562.89,0.00035616,10]
[402096306,1768517453436,-1341.24,0.00035616,10]
[402096307,1768517453445,-500.0,0.00035616,10]
[402096308,1768517453455,-3125.3,0.00035616,10]
[402096309,1768517453465,-2161.64,0.00035616,10]
[402096310,1768517453475,-500.0,0.00035616,10]
[402096311,1768517453485,-500.0,0.00035616,10]
[402096312,1768517453495,-713.63,0.00035616,10]
[402096313,1768517453504,-500.0,0.00035616,10]
[402096314,1768517453514,-840.68,0.00035616,10]
[402096315,1768517453524,-500.0,0.00035616,10]
[402096316,1768517453534,-500.0,0.00035616,10]
[402096317,1768517453543,-1145.35,0.00035616,10]
[402096318,1768517453553,-500.0,0.00035616,10]
[402096319,1768517453563,-627.69,0.00035616,10]
[402096320,1768517453572,-1227.76,0.00035616,10]
[402096321,1768517453582,-500.0,0.00035616,10]
[402096322,1768517453591,-592.9,0.00035616,10]
[402096323,1768517453601,-500.0,0.00035616,10]
[402096324,1768517453611,-4234.31,0.00035616,10]
[402096325,1768517453622,-500.0,0.00035616,10]
[402096326,1768517453634,-500.0,0.00035616,10]
[402096327,1768517453644,-600.84,0.00035616,10]
[402096328,1768517453653,-996.39,0.00035616,10]
[402096329,1768517453665,-500.0,0.00035616,10]
[402096330,1768517453675,-1792.71,0.00035616,10]
[402096331,1768517453684,-402.98381529,0.00035616,10]
[402096332,1768517453695,-502.45,0.00035616,10]
[402096333,1768517453705,-500.0,0.00035616,10]
[402096334,1768517453715,-500.0,0.00035616,10]
[402096335,1768517453725,-500.0,0.00035616,10]
[402096336,1768517453735,-500.0,0.00035616,10]
[402096337,1768517453745,-500.0,0.00035616,10]
[402096338,1768517453756,-505.21,0.00035616,10]
[402096339,1768517453766,-500.0,0.00035616,10]
[402096340,1768517453775,-500.0,0.00035616,10]
[402096341,1768517453785,-1003.0,0.00035616,10]
[402096342,1768517453796,-500.0,0.00035616,10]
[402096343,1768517453806,-500.0,0.00035616,10]
[402096344,1768517453816,-1297.13,0.00035616,10]
[402096345,1768517453825,-1029.55,0.00035616,10]
[402096346,1768517453835,-500.0,0.00035616,10]
[402096347,1768517453845,-747.85,0.00035616,10]
[402096348,1768517453855,-500.0,0.00035616,10]
[402096349,1768517453865,-620.18,0.00035616,10]
[402096350,1768517453876,-500.0,0.00035616,10]
[402096351,1768517453886,-500.0,0.00035616,10]
[402096352,1768517453896,-1049.68,0.00035616,10]
[402096353,1768517453907,-609.48,0.00035616,10]
[402096354,1768517453917,-957.64,0.00035616,10]
[402096355,1768517453928,-500.0,0.00035616,10]
[402096356,1768517453939,-543.24,0.00035616,10]
[402096357,1768517453949,-537.1,0.00035616,10]
[402096358,1768517453959,-500.0,0.00035616,10]
[402096359,1768517453969,-780.54,0.00035616,10]
[402096360,1768517453979,-500.0,0.00035616,10]
[402096361,1768517453989,-500.0,0.00035616,10]
[402096362,1768517454000,-500.0,0.00035616,10]